bitfinex-derivatives/quotes_ETHF0:USTF0_20251203
["timestamp","ask_amount","ask_price","bid_price","bid_amount"]
[1764749044878,1.5194,3059.3,3059.2,4.17801]
[1764749045075,1.5194,3059.3,3059.2,3.2078]
[1764749046187,1.9693,3059.0,3058.9,1.17007559]
[1764749046379,1.5194,3058.9,3058.8,0.00277037]
[1764749050983,4.7272,3058.9,3058.8,0.00277037]
[1764749057493,45.5272,3058.9,3058.8,0.00277037]
[1764749059394,51.5272,3058.9,3058.8,0.00277037]
[1764749059690,1.5194,3058.4,3058.3,4.0146]
[1764749060585,1.5194,3058.4,3058.3,3.21083413]
[1764749061694,1.5194,3058.4,3058.3,4.01763413]
[1764749063392,1.5194,3058.4,3058.3,3.21083413]
[1764749063591,1.5194,3058.4,3058.3,4.01763413]
[1764749064896,0.7782,3058.4,3058.3,4.76743413]
[1764749065097,1.52430251,3058.7,3058.6,0.8068]
[1764749065296,1.52430251,3058.7,3058.6,1.5566]
[1764749065896,1.52430251,3058.7,3058.6,0.8068]
[1764749066084,1.52430251,3058.7,3058.6,1.5566]
[1764749066288,1.52430251,3058.7,3058.6,0.8068]
[1764749066896,1.5194,3058.4,3058.3,4.76743413]
[1764749067892,1.52430251,3058.7,3058.6,0.8068]
[1764749068194,1.52430251,3058.7,3058.6,1.5566]
[1764749068396,0.78310251,3058.7,3058.6,1.5566]
[1764749068695,1.52430251,3058.7,3058.6,1.5566]
[1764749070101,1.52430251,3058.7,3058.6,0.8068]
[1764749070292,1.5194,3058.6,3058.5,2.17434]
[1764749070693,0.78310251,3058.7,3058.6,1.5566]
[1764749071192,1.52430251,3058.7,3058.6,1.5566]
[1764749071390,1.5194,3058.4,3058.3,4.38090972]
[1764749071596,1.5194,3058.1,3058.0,0.00490251]
[1764749071798,1.5194,3058.1,3057.5,1.17007559]
[1764749071799,1.5194,3057.6,3057.5,1.17007559]
[1764749072002,1.5194,3057.5,3057.4,4.7644]
[1764749072803,0.7807193,3057.5,3057.4,4.76773571]
[1764749073198,0.0025193,3057.5,3057.4,4.76773571]
[1764749073498,5.1577,3058.5,3058.4,0.7948]
[1764749074403,4.71056068,3058.5,3058.4,1.5338]
[1764749077606,3.21056068,3058.5,3058.4,1.5338]
[1764749078206,4.74536068,3058.5,3058.4,1.5338]
[1764749079002,1.53756068,3058.5,3058.4,1.5338]
[1764749079806,0.74296068,3058.5,3058.4,1.5338]
[1764749080006,0.00276068,3058.5,3058.4,1.5338]
[1764749081001,0.74296068,3058.5,3058.4,1.5338]
[1764749081193,1.53756068,3058.5,3058.4,1.5338]
[1764749083607,0.74296068,3058.5,3058.4,1.5338]
[1764749084804,0.00276068,3058.5,3058.4,1.69725]
[1764749085109,40.8,3059.2,3058.6,1.68204]
[1764749085307,40.8,3059.2,3058.6,6.06056056]
[1764749086000,0.00860719,3058.7,3058.6,6.06056056]
[1764749086805,1.54340719,3058.7,3058.6,4.10804]
[1764749087008,1.54340719,3058.7,3058.6,3.9446]
[1764749087909,1.54340719,3058.7,3058.6,4.7264]
[1764749088809,0.00860719,3058.7,3058.6,4.7264]
[1764749091013,0.74880719,3058.7,3058.6,4.7264]
[1764749091216,1.54340719,3058.7,3058.6,4.7264]
[1764749091713,1.54340719,3058.7,3058.6,3.2078]
[1764749092316,1.54340719,3058.7,3058.6,3.9446]
[1764749093317,1.54340719,3058.7,3058.6,3.2078]
[1764749093811,1.5348,3058.5,3058.4,2.85277056]
[1764749095522,0.7402,3058.5,3058.4,2.85277056]
[1764749097021,1.5348,3058.5,3058.4,2.07097056]
[1764749097223,0.7402,3058.5,3058.4,2.85277056]
[1764749097524,1.54340719,3058.7,3058.6,1.5186]
[1764749100225,0.74880719,3058.7,3058.6,1.5186]
[1764749100922,0.00860719,3058.7,3058.6,1.5186]
[1764749101123,3.2078,3059.3,3058.6,1.5186]
[1764749101419,4.7426,3059.8,3059.7,1.5186]
[1764749101620,4.7426,3059.8,3059.7,0.7368]
[1764749102215,4.74676558,3059.8,3059.7,0.74019405]
[1764749102420,4.74676558,3059.8,3059.7,1.52199405]
[1764749103126,0.74436558,3059.8,3059.7,1.52199405]
[1764749103717,1.52996558,3059.8,3059.7,0.74019405]
[1764749104321,1.52996558,3059.8,3059.7,0.00339405]
[1764749105624,0.74436558,3059.8,3059.7,1.59099405]
[1764749106124,1.52996558,3059.8,3059.7,1.59099405]
[1764749107525,1.52996558,3059.8,3059.7,0.79519405]
[1764749107924,1.52996558,3059.8,3059.7,0.00339405]
[1764749109915,1.52996558,3059.8,3059.7,0.79519405]
[1764749110230,1.52996558,3059.8,3059.7,0.00339405]
[1764749110531,0.00490251,3060.1,3060.0,2.0534]
[1764749110828,0.77660251,3060.1,3060.0,2.0534]
[1764749111032,1.56220251,3060.1,3060.0,2.0534]
[1764749111833,1.56610432,3060.1,3060.0,2.0534]
[1764749112026,0.78050432,3060.1,3060.0,2.0534]
[1764749112725,1.56610432,3060.1,3060.0,2.0534]
[1764749113231,1.56610432,3060.1,3059.7,0.16677405]
[1764749113232,1.5573,3059.8,3059.7,0.00339405]
[1764749113528,0.00880432,3060.1,3059.7,1.59099405]
[1764749113727,1.56610432,3060.1,3060.0,5.2612]
[1764749114031,2.71587316,3060.1,3059.7,0.00339405]
[1764749114229,0.7717,3059.8,3059.7,1.59099405]
[1764749116434,1.5573,3059.8,3059.7,1.59099405]
[1764749117339,0.7717,3059.8,3059.7,1.59099405]
[1764749117636,1.56610432,3060.1,3060.0,2.0534]
[1764749117826,1.56610432,3060.1,3060.0,5.2612]
[1764749118238,0.00880432,3060.1,3060.0,5.2612]
[1764749118624,0.78050432,3060.1,3060.0,5.2612]
[1764749120236,1.56610432,3060.1,3060.0,5.2612]
[1764749120441,0.78050432,3060.1,3060.0,5.2612]
[1764749122434,1.56610432,3060.1,3060.0,5.2612]
[1764749123145,0.78050432,3060.1,3060.0,5.2612]
[1764749123343,1.56610432,3060.1,3060.0,5.2612]
[1764749126242,0.00880432,3060.1,3060.0,5.2612]
[1764749127646,40.8,3060.6,3060.0,5.2612]
[1764749127647,0.33648539,3061.0,3060.6,1.5876]
[1764749127837,1.5573,3060.8,3060.7,4.7954]
[1764749128847,1.5615256,3060.8,3060.7,4.7954]
[1764749129347,0.7759256,3060.8,3060.7,4.7954]
[1764749129547,0.0042256,3060.8,3060.7,4.7954]
[1764749130249,0.7759256,3060.8,3060.7,4.7954]
[1764749130751,1.5615256,3060.8,3060.7,3.2078]
[1764749130945,1.5573,3060.4,3060.3,4.7954]
[1764749133856,0.7717,3060.4,3060.3,4.7954]
[1764749135352,1.5453,3060.4,3060.3,4.7954]
[1764749136758,0.7717,3060.4,3060.3,4.7954]
[1764749137054,0.0042256,3060.8,3060.3,4.7954]
[1764749137252,0.0042256,3060.8,3060.7,0.7662]
[1764749137253,1.5107256,3060.8,3060.7,0.7662]
[1764749137455,1.5107256,3060.8,3060.7,1.5334]
[1764749137650,0.0042256,3060.8,3060.7,1.5334]
[1764749137857,0.0042256,3060.8,3060.7,4.7412]
[1764749138152,40.80490251,3061.1,3061.0,2.0508]
[1764749138153,0.00490251,3061.1,3061.0,2.0508]
[1764749139057,0.00725889,3061.1,3061.0,2.0508]
[1764749142360,0.00725889,3061.1,3061.0,3.19843769]
[1764749146270,2.68503769,3061.9,3061.8,0.797]
[1764749146767,43.48503769,3061.9,3061.8,0.797]
[1764749146974,1.5374,3061.6,3061.5,2.0508]
[1764749147369,1.54106099,3061.6,3061.5,2.0508]
[1764749148268,1.54106099,3061.6,3061.4,3.2078]
[1764749148461,1.5374,3061.5,3061.4,3.2078]
[1764749148666,1.5374,3061.5,3061.4,4.772]
[1764749149068,0.80516099,3061.6,3061.5,2.0508]
[1764749149275,1.54106099,3061.6,3061.5,2.0508]
[1764749150171,0.80516099,3061.6,3061.5,2.0508]
[1764749150374,1.54106099,3061.6,3061.5,0.797]
[1764749150576,1.54106099,3061.6,3061.5,1.5642]
[1764749150877,1.54106099,3061.6,3061.5,0.797]
[1764749151076,1.54106099,3061.6,3061.5,1.5642]
[1764749151272,1.54106099,3061.6,3061.5,2.0508]
[1764749151273,0.80516099,3061.6,3061.5,2.0508]
[1764749151470,1.54106099,3061.6,3061.5,0.797]
[1764749153376,0.80516099,3061.6,3061.5,2.0508]
[1764749153577,0.00366099,3061.6,3061.5,2.0508]
[1764749154173,0.80516099,3061.6,3061.5,2.0508]
[1764749154975,0.00366099,3061.6,3061.5,2.0508]
[1764749155770,0.80516099,3061.6,3061.5,2.0508]
[1764749158283,1.54106099,3061.6,3061.5,2.0508]
[1764749159483,1.54106099,3061.6,3061.5,0.797]
[1764749160782,1.5374,3061.5,3061.4,4.0048]
[1764749161284,1.5374,3061.5,3061.4,4.772]
[1764749161485,0.80516099,3061.6,3061.5,2.0508]
[1764749161676,1.54106099,3061.6,3061.5,2.0508]
[1764749162383,0.80516099,3061.6,3061.5,2.0508]
[1764749162584,1.54106099,3061.6,3061.5,2.0508]
[1764749163387,0.80516099,3061.6,3061.5,2.0508]
[1764749163586,0.00366099,3061.6,3061.5,2.0508]
[1764749164480,1.5797,3061.5,3061.4,4.7626]
[1764749166386,1.5797,3061.5,3061.4,3.9752]
[1764749166788,0.7954,3061.5,3061.4,4.7626]
[1764749166982,1.5797,3061.5,3061.4,4.7626]
[1764749169888,1.5797,3061.5,3061.4,3.9752]
[1764749170191,1.5797,3061.5,3061.4,4.7626]
[1764749170790,1.5797,3061.5,3061.4,3.9752]
[1764749171086,0.7954,3061.5,3061.4,4.7626]
[1764749171292,1.58336099,3061.6,3061.5,2.0086]
[1764749173492,1.58336099,3061.6,3061.5,0.7674]
[1764749173896,2.0186,3061.5,3061.2,1.17616265]
[1764749174193,2.7533944,3061.3,3061.2,0.00490251]
[1764749177298,1.5797,3060.7,3060.6,3.2078]
[1764749177596,2.7533944,3060.7,3060.6,3.2078]
[1764749177895,43.5533944,3060.7,3060.6,3.2078]
[1764749178294,1.5797,3060.2,3060.1,3.2078]
[1764749178594,1.1736944,3060.2,3059.7,1.55819405]
[1764749178785,0.7954,3059.8,3059.7,1.55819405]
[1764749179100,1.5797,3059.8,3059.7,1.55819405]
[1764749179689,1.5797,3059.8,3059.7,0.00339405]
[1764749180087,1.5797,3059.8,3059.7,1.55819405]
[1764749180290,1.5797,3059.8,3059.7,0.00339405]
[1764749181989,1.5797,3059.8,3059.7,1.55819405]
[1764749183702,1.5797,3059.8,3059.7,0.77079405]
[1764749183990,1.5797,3059.8,3059.7,1.55819405]
[1764749185098,1.5797,3059.8,3059.7,0.77079405]
[1764749185497,1.5797,3059.8,3059.7,0.00339405]
[1764749186795,1.5797,3059.8,3059.7,0.77079405]
[1764749187701,1.5797,3059.8,3059.7,0.00339405]
[1764749188201,1.5797,3059.8,3059.7,1.55819405]
[1764749188700,1.5797,3059.8,3059.7,0.00339405]
[1764749189197,1.5797,3059.8,3059.4,0.28200251]
[1764749189400,1.5797,3059.4,3058.6,3.2078]
[1764749189603,0.7954,3058.7,3058.6,4.7626]
[1764749189795,2.7533944,3058.7,3058.6,3.2078]
[1764749190287,1.58200015,3058.7,3058.6,3.21168941]
[1764749192298,1.58200015,3058.7,3058.6,4.76648941]
[1764749192503,1.58200015,3058.7,3058.6,3.97908941]
[1764749192700,1.58200015,3058.7,3058.6,3.21168941]
[1764749193003,1.58200015,3058.7,3058.6,3.97908941]
[1764749194405,1.58200015,3058.7,3058.6,3.21168941]
[1764749195510,1.58200015,3058.7,3058.3,0.00490251]
[1764749195511,1.5199,3058.4,3058.3,0.00490251]
[1764749195807,2.6935944,3058.4,3058.3,0.00490251]
[1764749196108,43.4935944,3058.4,3058.3,0.00490251]
[1764749196509,43.4935944,3058.4,3058.3,0.0089765]
[1764749196805,42.3199,3058.4,3058.3,0.7944765]
[1764749197212,42.3199,3058.4,3058.3,0.0089765]
[1764749197911,43.4935944,3058.4,3058.3,0.0089765]
[1764749198113,46.7013944,3058.4,3058.3,0.0089765]
[1764749198311,0.7414,3057.8,3057.7,4.8033]
[1764749198610,45.1814944,3058.4,3057.7,4.0178]
[1764749198907,40.8,3058.4,3058.3,1.5955]
[1764749199513,40.8,3058.4,3058.3,1.59940837]
[1764749199715,0.7414,3058.4,3058.3,1.59940837]
[1764749201112,40.8,3058.6,3058.5,2.078]
[1764749201313,1.5003,3058.4,3058.3,1.59940837]
[1764749201610,0.7414,3058.4,3058.3,1.59940837]
[1764749202513,40.8,3058.6,3058.5,2.078]
[1764749203114,1.5003,3058.4,3058.3,1.59940837]
[1764749203408,0.7414,3058.4,3058.3,1.59940837]
[1764749203907,1.5003,3058.4,3058.3,0.78940837]
[1764749204112,1.5003,3058.4,3058.3,0.00390837]
[1764749207510,14.3943,3058.4,3058.3,0.00390837]
[1764749207913,1.5003,3058.1,3058.0,0.00490251]
[1764749209017,1.5003,3058.1,3058.0,0.00880289]
[1764749211015,4.7081,3058.1,3058.0,0.00880289]
[1764749211211,2.6739944,3057.8,3057.7,3.2078]
[1764749212112,2.6739944,3057.8,3057.7,3.21099518]
[1764749213420,43.4739944,3057.8,3057.7,0.00319518]
[1764749213619,43.4739944,3057.8,3057.4,0.00326842]
[1764749213620,1.9392,3057.5,3057.4,0.00326842]
[1764749214511,1.9392,3057.5,3057.4,0.00653745]
[1764749214720,3.1128944,3057.5,3057.4,0.00653745]
[1764749215320,1.5003,3057.3,3056.6,3.2078]
[1764749215617,1.1736944,3057.2,3056.6,4.8033]
[1764749215818,0.7414,3056.7,3056.6,4.8033]
[1764749216318,0.7414,3056.7,3056.6,4.80624262]
[1764749216615,1.50520251,3057.0,3056.9,1.5955]
[1764749216918,1.50520251,3057.0,3056.9,0.7855]
[1764749217117,1.5003,3056.7,3056.6,0.00294262]
[1764749217416,1.5003,3056.7,3056.6,0.78844262]
[1764749217417,5.8817944,3056.7,3056.6,0.78844262]
[1764749217805,46.6817944,3056.7,3056.6,0.78844262]
[1764749218010,46.6817944,3056.7,3056.6,0.00294262]
[1764749218406,46.65973352,3056.7,3056.6,0.00294262]
[1764749218605,1.5003,3056.1,3056.0,4.319]
[1764749219615,1.50326692,3056.1,3056.0,4.32183386]
[1764749220312,1.50326692,3056.1,3056.0,0.78833386]
[1764749220513,0.7414,3055.8,3055.7,4.8033]
[1764749220714,1.5003,3055.8,3055.7,4.8033]
[1764749221019,0.7414,3055.8,3055.7,4.8033]
[1764749221211,1.5003,3055.8,3055.7,4.8033]
[1764749221414,1.5003,3055.8,3055.7,0.00370224]
[1764749222116,42.3003,3055.8,3055.7,0.00370224]
[1764749222316,42.3003,3055.8,3055.0,0.4825]
[1764749222317,0.7414,3055.1,3055.0,2.078]
[1764749222518,3.9492,3055.1,3055.0,2.078]
[1764749222917,4.7033,3055.1,3055.0,2.078]
[1764749223314,4.7033,3055.1,3055.0,1.5996839]
[1764749223622,4.7033,3055.1,3055.0,0.7896839]
[1764749223816,4.7033,3055.1,3054.4,3.2078]
[1764749224027,4.7033,3055.1,3054.0,0.4825]
[1764749224028,2.64143352,3054.9,3054.8,0.7315]
[1764749224322,1.4898,3054.6,3054.0,3.6903]
[1764749224716,0.3431,3054.5,3054.0,3.6903]
[1764749225022,1.4898,3054.1,3054.0,4.6997169]
[1764749225220,1.4898,3054.1,3054.0,0.0040169]
[1764749226113,3.2078,3054.2,3054.0,1.9458169]
[1764749226423,4.6976,3054.7,3054.6,1.4879]
[1764749226621,4.6976,3054.7,3054.6,0.7315]
[1764749226823,4.6976,3054.7,3054.0,3.6657169]
[1764749227123,4.6976,3054.7,3054.0,0.4579169]
[1764749227325,40.8,3054.6,3054.5,0.7315]
[1764749227619,3.2078,3054.3,3054.2,1.4879]
[1764749228929,3.2078,3054.7,3054.6,1.4879]
[1764749230217,3.2078,3055.1,3055.0,0.4539]
[1764749230421,0.4806,3055.0,3054.5,0.4539]
[1764749230820,0.7357,3054.6,3054.5,1.1854]
[1764749231014,1.4898,3054.6,3054.5,1.9418]
[1764749231428,0.7357,3054.6,3054.5,1.9418]
[1764749231624,1.9704,3055.0,3054.9,0.7315]
[1764749231827,1.9704,3055.0,3054.5,0.4539]
[1764749231828,0.7357,3054.6,3054.5,1.9418]
[1764749232022,1.4898,3055.0,3054.9,0.7315]
[1764749232229,0.7357,3055.0,3054.9,1.4879]
[1764749232624,3.2078,3055.1,3055.0,1.9418]
[1764749234325,0.00490251,3055.4,3055.3,1.4879]
[1764749239727,3.2078,3055.6,3055.3,1.4879]
[1764749239935,3.21076692,3056.1,3056.0,1.9418]
[1764749240625,3.94646692,3056.1,3056.0,1.9418]
[1764749241227,0.7357,3055.6,3055.5,1.9418]
[1764749241439,1.4898,3055.6,3055.5,1.9418]
[1764749241632,1.4898,3056.0,3055.9,1.4879]
[1764749242531,0.1695,3056.0,3055.5,1.9418]
[1764749242732,1.4898,3056.0,3055.9,1.4879]
[1764749243434,0.7357,3056.0,3055.9,1.4879]
[1764749244326,3.21076692,3056.1,3056.0,1.9418]
[1764749244728,4.70056692,3056.1,3056.0,1.9418]
[1764749245534,0.7357,3055.6,3055.5,1.9418]
[1764749245736,1.4898,3055.6,3055.5,1.9418]
[1764749246834,0.7357,3055.6,3055.5,1.9418]
[1764749247837,3.94646692,3056.1,3056.0,1.9418]
[1764749248138,4.70056692,3056.1,3056.0,0.7315]
[1764749248439,1.9704,3056.0,3055.9,0.7315]
[1764749248943,0.7357,3055.6,3055.5,1.9418]
[1764749249432,0.4806,3056.0,3055.5,1.9418]
[1764749249628,1.9704,3056.0,3055.9,0.7315]
[1764749249834,3.21076692,3056.1,3056.0,1.9418]
[1764749250142,3.94646692,3056.1,3056.0,1.9418]
[1764749250438,0.1695,3056.0,3055.5,0.4539]
[1764749250640,0.7357,3055.6,3055.5,1.9418]
[1764749251341,1.4898,3055.6,3055.5,1.9418]
[1764749251543,1.6593,3056.0,3055.9,0.7315]
[1764749252042,1.4898,3056.0,3055.9,1.4879]
[1764749252247,3.21076692,3056.1,3056.0,1.9418]
[1764749252740,3.94646692,3056.1,3056.0,1.9418]
[1764749252937,3.21076692,3056.1,3056.0,1.9418]
[1764749254936,3.94646692,3056.1,3056.0,1.9418]
[1764749257044,4.75226692,3056.1,3055.5,0.4539]
[1764749257343,4.75226692,3056.1,3056.0,0.7781]
[1764749257644,4.75226692,3056.1,3056.0,1.5471]
[1764749259145,4.75226692,3056.1,3056.0,0.7781]
[1764749259340,4.75226692,3056.1,3056.0,1.5471]
[1764749260245,0.8031,3055.6,3055.5,2.001]
[1764749260647,0.1699,3056.0,3055.5,2.001]
[1764749261047,0.8031,3055.6,3055.5,2.001]
[1764749261554,0.8031,3055.6,3055.5,3.17226014]
[1764749262241,1.6089,3055.5,3055.4,1.5471]
[1764749262442,2.0544,3055.5,3055.4,0.7781]
[1764749263146,1.6089,3055.5,3055.4,1.5471]
[1764749263646,0.8031,3055.5,3055.4,1.5471]
[1764749263840,1.6089,3056.0,3055.9,1.5471]
[1764749264243,3.21076692,3056.1,3055.9,1.5471]
[1764749264447,3.21076692,3056.1,3055.5,3.6689]
[1764749264448,4.01386692,3056.1,3056.0,2.0082]
[1764749264948,4.81966692,3056.1,3056.0,2.0082]
[1764749265241,4.01656692,3056.1,3055.7,1.17126014]
[1764749265446,0.8031,3055.8,3055.7,2.71836014]
[1764749265643,1.6089,3055.8,3055.7,2.71836014]
[1764749265838,1.6089,3055.8,3055.7,1.5471]
[1764749266347,1.6089,3055.8,3055.7,2.71836014]
[1764749266847,0.8031,3055.8,3055.7,2.71836014]
[1764749267241,4.81966692,3056.1,3056.0,1.5471]
[1764749268152,4.81966692,3056.1,3056.0,0.7781]
[1764749268451,4.81966692,3056.1,3056.0,2.0082]
[1764749268638,4.81966692,3056.1,3056.0,1.5471]
[1764749268843,4.81966692,3056.1,3056.0,0.7781]
[1764749269452,1.6089,3055.8,3055.7,2.71836014]
[1764749270751,1.6089,3055.8,3055.7,0.7781]
[1764749271752,1.6089,3055.8,3055.7,1.5471]
[1764749272551,4.81966692,3056.1,3056.0,0.7781]
[1764749272744,4.81966692,3056.1,3055.6,1.17126014]
[1764749272943,4.81966692,3056.1,3056.0,0.7781]
[1764749273150,4.81966692,3056.1,3055.6,1.17126014]
[1764749273350,4.81966692,3056.1,3056.0,1.5471]
[1764749273651,4.81966692,3056.1,3056.0,0.7781]
[1764749273842,4.81966692,3056.1,3056.0,2.0082]
[1764749274244,4.81966692,3056.1,3056.0,1.5471]
[1764749274445,4.81966692,3056.1,3056.0,0.7781]
[1764749276568,4.81966692,3056.1,3056.0,1.5471]
[1764749277356,4.81966692,3056.1,3056.0,0.7781]
[1764749281257,4.81966692,3056.1,3056.0,1.5471]
[1764749281551,0.16354,3056.7,3056.6,1.5471]
[1764749281552,3.2078,3056.7,3056.6,1.5471]
[1764749281759,0.8031,3056.7,3056.6,1.5471]
[1764749282356,1.6089,3056.7,3056.6,0.7781]
[1764749282560,1.61171681,3056.7,3056.6,0.78112093]
[1764749282750,1.61171681,3056.7,3056.6,1.55012093]
[1764749282956,1.61171681,3056.7,3056.6,0.00302093]
[1764749284665,1.61171681,3056.7,3056.6,0.76842093]
[1764749286065,1.61171681,3056.7,3056.6,0.00302093]
[1764749287267,0.74451681,3056.7,3056.6,1.57832093]
[1764749287564,0.00281681,3056.7,3056.6,1.57832093]
[1764749287760,0.74451681,3056.7,3056.6,1.57832093]
[1764749289274,1.50761681,3056.7,3056.6,1.57832093]
[1764749292473,0.74451681,3056.7,3056.6,1.57832093]
[1764749292867,1.50761681,3056.7,3056.6,1.57832093]
[1764749293764,1.50761681,3056.7,3056.6,0.76842093]
[1764749294471,1.50761681,3056.7,3056.6,0.00302093]
[1764749295966,0.2747,3056.5,3056.0,3.2078]
[1764749296173,1.5048,3056.1,3056.0,3.2078]
[1764749296872,1.5048,3056.1,3056.0,3.2107444]
[1764749298373,1.5048,3056.1,3056.0,3.9761444]
[1764749300374,1.5048,3056.1,3056.0,3.2107444]
[1764749302077,1.5048,3056.1,3056.0,3.9761444]
[1764749302378,1.5048,3056.1,3056.0,3.2107444]
[1764749304173,1.5048,3056.1,3056.0,0.0029444]
[1764749308485,3.2078,3056.3,3055.6,3.2078]
[1764749308486,1.5048,3055.7,3055.6,3.2078]
[1764749308979,42.3048,3055.7,3055.6,3.2078]
[1764749309486,42.3048,3055.7,3055.6,3.21029571]
[1764749310383,1.5048,3055.3,3055.2,3.9732]
[1764749311280,1.5048,3055.3,3055.2,3.2112949]
[1764749312979,1.5048,3055.3,3055.2,0.0034949]
[1764749314283,1.5403,3055.1,3055.0,0.00491087]
[1764749314583,1.5403,3054.9,3054.8,3.2078]
[1764749315484,1.5403,3054.9,3054.8,3.21073999]
[1764749317790,1.5403,3054.9,3054.8,0.00293999]
[1764749318185,42.3403,3054.9,3054.8,0.00293999]
[1764749319089,1.5207,3054.6,3054.5,0.00491087]
[1764749319289,4.7285,3054.6,3054.5,0.00491087]
[1764749320092,4.7285,3054.6,3054.5,0.00793236]
[1764749320295,4.7285,3054.6,3054.5,1.50503236]
[1764749320984,1.5207,3054.6,3054.5,1.50503236]
[1764749321290,1.5207,3054.6,3054.5,1.96883236]
[1764749321882,1.5207,3054.6,3054.5,0.00793236]
[1764749322690,1.5207,3054.6,3054.5,0.75553236]
[1764749323091,1.5207,3054.6,3054.5,0.00793236]
[1764749324402,2.70012803,3054.6,3054.5,0.75553236]
[1764749324997,2.70012803,3054.6,3054.5,1.50503236]
[1764749325384,1.5207,3054.6,3054.5,1.96883236]
[1764749326394,3.2078,3054.8,3054.7,1.4971]
[1764749326395,4.7285,3054.8,3054.7,1.4971]
[1764749329093,3.9695,3054.8,3054.7,1.4971]
[1764749329294,4.7285,3054.8,3054.7,1.4971]
[1764749329495,1.5207,3054.6,3054.5,1.96883236]
[1764749329702,1.5207,3054.6,3054.5,1.50503236]
[1764749330101,1.5207,3054.6,3054.5,1.96883236]
[1764749330801,4.38722803,3054.8,3054.5,1.96883236]
[1764749331005,3.9695,3054.8,3054.7,1.4971]
[1764749331196,3.2078,3054.8,3054.7,1.4971]
[1764749331802,3.9695,3054.8,3054.7,1.4971]
[1764749332305,0.7617,3054.8,3054.7,1.4971]
[1764749332702,1.5207,3054.8,3054.7,1.4971]
[1764749333703,2.70012803,3054.8,3054.7,1.4971]
[1764749333889,2.70012803,3054.8,3054.7,0.7476]
[1764749334903,2.70012803,3054.8,3054.5,0.47173236]
[1764749334904,1.5207,3054.6,3054.5,1.96883236]
[1764749335302,1.5207,3054.6,3054.5,0.00793236]
[1764749338096,0.7617,3054.6,3054.5,1.96883236]
[1764749338299,1.5207,3054.8,3054.7,1.4971]
[1764749338495,2.70012803,3054.8,3054.7,1.4971]
[1764749338696,1.5207,3054.6,3054.5,0.75553236]
[1764749338900,1.5207,3054.6,3054.5,0.00793236]
[1764749339709,1.5207,3054.6,3054.5,0.75553236]
[1764749340012,1.5207,3054.6,3054.5,0.00793236]
[1764749340506,2.67382721,3054.6,3054.5,0.00793236]
[1764749340707,2.67382721,3054.6,3054.5,0.75553236]
[1764749341811,41.95312721,3054.9,3054.8,1.4971]
[1764749342306,40.8,3054.9,3054.8,1.4971]
[1764749342705,41.95312721,3054.9,3054.8,1.4971]
[1764749347818,40.8,3054.9,3054.8,1.4971]
[1764749349415,1.5473,3054.7,3054.6,1.95323346]
[1764749349611,1.5473,3054.7,3054.6,1.5722]
[1764749350918,0.784,3054.7,3054.6,1.5722]
[1764749351930,1.5473,3054.7,3054.6,1.5722]
[1764749355137,1.5473,3054.7,3054.6,0.7766]
[1764749355332,1.5473,3054.6,3054.5,0.00793236]
[1764749355534,2.70042721,3054.6,3054.5,0.00793236]
[1764749357932,1.5473,3054.6,3054.5,1e-08]
[1764749358837,14.4653,3054.6,3054.5,1e-08]
[1764749360135,1.5473,3054.6,3054.5,2.03610001]
[1764749360534,3.2078,3054.7,3054.5,2.03610001]
[1764749360839,40.8,3054.9,3054.8,1.5722]
[1764749364446,1.5473,3054.9,3054.8,1.5722]
[1764749365935,1.5473,3054.9,3054.5,1.64053347]
[1764749365936,0.784,3054.6,3054.5,3.21273347]
[1764749366237,41.247,3055.0,3054.9,0.7766]
[1764749366632,41.247,3055.0,3054.9,1.5722]
[1764749366834,40.8,3055.0,3054.9,1.5722]
[1764749367940,4.7551,3055.1,3055.0,1.5722]
[1764749368439,45.5551,3055.1,3055.0,0.7766]
[1764749368737,0.784,3054.8,3054.7,1.95323346]
[1764749368945,0.784,3054.8,3054.7,2.74883346]
[1764749370041,44.0078,3055.1,3054.7,1.17663346]
[1764749370332,44.0078,3055.1,3055.0,1.5722]
[1764749370538,44.0078,3055.1,3055.0,2.0361]
[1764749371643,40.8,3055.1,3055.0,2.0361]
[1764749372645,40.8,3055.1,3055.0,1.5722]
[1764749372841,1.5473,3054.8,3054.7,3.9844]
[1764749373040,2.70042721,3054.8,3054.7,3.2078]
[1764749373546,2.70042721,3054.8,3054.7,4.0048]
[1764749374439,2.70042721,3054.8,3054.7,3.2078]
[1764749376946,0.784,3054.8,3054.7,4.6837]
[1764749377151,40.8,3055.1,3055.0,0.732]
[1764749378248,1.4936,3054.8,3054.7,4.6837]
[1764749382064,0.7618,3054.8,3054.7,4.6837]
[1764749382248,2.64672721,3055.0,3054.9,1.4759]
[1764749382447,1.91492721,3055.0,3054.9,1.4759]
[1764749382647,2.64672721,3055.0,3054.9,1.4759]
[1764749383950,1.91492721,3055.0,3054.9,1.4759]
[1764749384151,0.7618,3055.0,3054.9,1.4759]
[1764749384352,5.85452721,3055.3,3055.2,0.732]
[1764749384654,1.4936,3055.1,3055.0,0.732]
[1764749385458,1.4936,3055.1,3055.0,1.4759]
[1764749385958,1.4936,3055.1,3055.0,0.732]
[1764749389059,1.4936,3055.1,3055.0,1.4759]
[1764749391353,1.4936,3055.1,3055.0,1.9179]
[1764749391551,41.95312721,3055.3,3055.2,1.4759]
[1764749391552,40.8,3055.3,3055.2,1.4759]
[1764749391756,0.76671087,3055.4,3055.3,1.4759]
[1764749391952,1.49851087,3055.4,3055.3,1.4759]
[1764749392153,42.29851087,3055.4,3055.3,1.4759]
[1764749393853,41.56671087,3055.4,3055.3,1.4759]
[1764749394559,1.49851087,3055.4,3055.3,1.4759]
[1764749395151,1.49851087,3055.4,3055.3,0.732]
[1764749398163,0.00491087,3055.4,3055.3,1.4759]
[1764749398864,0.76671087,3055.4,3055.3,1.4759]
[1764749399867,1.49851087,3055.4,3055.3,1.4759]
[1764749400565,12.2875,3056.0,3055.2,1.17558728]
[1764749400566,2.64672721,3055.9,3055.8,1.4759]
[1764749401064,43.44672721,3055.9,3055.8,1.4759]
[1764749401371,4.7014,3056.1,3056.0,1.9179]